bitfinex-derivatives/quotes_ETHF0:USTF0_20250709
["timestamp","ask_amount","ask_price","bid_price","bid_amount"]
[1752060441070,5.30236249,2624.8,2624.7,10.0752]
[1752060441469,31.20636249,2624.8,2624.7,11.47927664]
[1752060441969,31.20636249,2624.8,2624.7,10.0752]
[1752060442169,5.30236249,2624.8,2624.7,11.47927664]
[1752060442369,30.53096249,2624.8,2624.7,11.47927664]
[1752060443375,4.62796249,2624.8,2624.7,11.47927664]
[1752060443572,1.42016249,2624.8,2624.7,14.68707664]
[1752060443773,25.903,2624.8,2624.7,14.68707664]
[1752060445677,27.33195601,2625.0,2624.9,11.4613]
[1752060446976,27.33195601,2625.0,2624.9,10.1151]
[1752060447776,25.903,2625.0,2624.9,10.1151]
[1752060447975,27.33089475,2625.0,2624.9,10.1151]
[1752060448274,27.33084026,2625.0,2624.9,10.1151]
[1752060448673,28.7349169,2625.0,2624.9,10.1151]
[1752060450174,28.7349169,2625.0,2624.9,8.4933]
[1752060451676,28.7349169,2625.0,2624.9,10.1151]
[1752060455081,2.8319169,2625.0,2624.9,10.1151]
[1752060455281,27.32584026,2625.0,2624.9,10.1151]
[1752060458082,28.7299169,2625.0,2624.9,10.1151]
[1752060460385,31.9377169,2625.0,2624.9,10.1151]
[1752060463188,6.0397169,2625.0,2624.9,10.1151]
[1752060463591,31.9367169,2625.0,2624.9,10.1151]
[1752060468589,30.53264026,2625.0,2624.9,10.1151]
[1752060473693,27.32484026,2625.0,2624.9,10.1151]
[1752060473990,30.53264026,2625.0,2624.9,10.1151]
[1752060476695,30.52964026,2625.0,2624.9,10.1151]
[1752060481899,27.32184026,2625.0,2624.9,10.1151]
[1752060482097,30.52964026,2625.0,2624.9,10.1151]
[1752060484695,30.52964026,2625.0,2624.9,9.1285]
[1752060485302,30.52964026,2625.0,2624.9,10.1079]
[1752060486602,30.52964026,2625.0,2624.9,9.1285]
[1752060487303,30.52964026,2625.0,2624.9,8.4933]
[1752060487808,30.52964026,2625.0,2624.9,9.1829]
[1752060488709,30.52964026,2625.0,2624.9,10.1623]
[1752060491711,30.52540894,2625.0,2624.9,10.1623]
[1752060492212,30.52240894,2625.0,2624.9,10.1623]
[1752060492706,4.63140894,2625.0,2624.9,10.1623]
[1752060492908,4.63140894,2625.0,2624.9,11.56637664]
[1752060493413,30.52240894,2625.0,2624.9,12.19047664]
[1752060494915,4.63140894,2625.0,2624.9,12.19047664]
[1752060495111,30.52240894,2625.0,2624.9,10.7864]
[1752060496820,30.52240894,2625.0,2624.9,10.1623]
[1752060497418,29.0988,2625.0,2624.9,10.1623]
[1752060497716,30.52126252,2625.0,2624.9,10.1623]
[1752060499518,27.31346252,2625.0,2624.9,10.1623]
[1752060499817,30.52126252,2625.0,2624.9,10.1623]
[1752060501513,30.52126252,2625.0,2624.9,8.4933]
[1752060501718,31.92533916,2625.0,2624.9,10.0824]
[1752060503223,28.71753916,2625.0,2624.9,10.0824]
[1752060503422,31.92533916,2625.0,2624.9,10.0824]
[1752060508322,4.63026252,2625.0,2624.9,10.0824]
[1752060508628,30.51726252,2625.0,2624.9,10.0824]
[1752060509130,4.63026252,2625.0,2624.9,10.0824]
[1752060509426,30.51726252,2625.0,2624.9,10.0824]
[1752060514728,27.30946252,2625.0,2624.9,10.0824]
[1752060514929,30.51726252,2625.0,2624.9,10.0824]
[1752060525134,4.63026252,2625.0,2624.9,10.0824]
[1752060525334,30.51526252,2625.0,2624.9,10.0824]
[1752060526736,27.30746252,2625.0,2624.9,10.0824]
[1752060526938,30.51526252,2625.0,2624.9,10.0824]
[1752060532442,31.91933916,2625.0,2624.9,10.0824]
[1752060532641,31.91933916,2625.0,2624.9,9.1231]
[1752060534341,31.91933916,2625.0,2624.9,10.1441]
[1752060541045,4.63026252,2625.0,2624.9,10.1441]
[1752060541549,30.51226252,2625.0,2624.9,10.1441]
[1752060542446,30.51226252,2625.0,2624.9,11.4859]
[1752060543047,4.63026252,2625.0,2624.9,11.4859]
[1752060543246,30.51226252,2625.0,2624.9,11.4859]
[1752060543545,4.63026252,2625.0,2624.9,11.4859]
[1752060543746,30.51226252,2625.0,2624.9,11.4859]
[1752060544949,4.63026252,2625.0,2624.9,11.4859]
[1752060545143,30.51126252,2625.0,2624.9,11.4859]
[1752060547350,27.30346252,2625.0,2624.9,11.4859]
[1752060547950,27.96996252,2625.0,2624.9,11.4859]
[1752060552452,27.97275167,2625.0,2624.9,11.4859]
[1752060553255,2.09175167,2625.0,2624.9,11.4859]
[1752060553450,27.97175167,2625.0,2624.9,11.4859]
[1752060553753,1.42525167,2625.0,2624.9,11.4859]
[1752060554050,27.30525167,2625.0,2624.9,11.4859]
[1752060561371,1.42525167,2625.0,2624.9,11.4859]
[1752060561666,27.30225167,2625.0,2624.9,11.4859]
[1752060562962,28.32430238,2625.0,2624.9,9.1231]
[1752060563167,28.96220238,2625.0,2624.9,9.1231]
[1752060563366,28.96220238,2625.0,2624.9,10.1481]
[1752060564462,28.96220238,2625.0,2624.9,9.1231]
[1752060564760,27.94015167,2625.0,2624.9,9.1231]
[1752060564964,29.21802022,2625.0,2624.9,9.1231]
[1752060568866,29.21802022,2625.0,2624.9,8.4933]
[1752060569067,30.52262022,2625.0,2624.9,8.4933]
[1752060571361,33.91628024,2625.0,2624.9,8.4933]
[1752060571669,30.52262022,2625.0,2624.9,8.4933]
[1752060572271,33.9493562,2625.0,2624.9,8.4933]
[1752060574272,30.52262022,2625.0,2624.9,8.4933]
[1752060575771,33.73042022,2625.0,2624.9,8.4933]
[1752060576468,33.72430742,2625.0,2624.9,8.4933]
[1752060577967,37.1510434,2625.0,2624.9,8.4933]
[1752060580969,33.9432434,2625.0,2624.9,8.4933]
[1752060581175,37.1510434,2625.0,2624.9,8.4933]
[1752060584782,36.89563973,2625.0,2624.9,8.4933]
[1752060586385,33.46890375,2625.0,2624.9,3.0200157]
[1752060587878,36.88998886,2625.0,2624.9,3.0200157]
[1752060589886,35.58538886,2625.0,2624.9,3.0200157]
[1752060595894,35.58538886,2625.0,2624.9,3.6753157]
[1752060596096,35.58538886,2625.0,2624.9,4.6661157]
[1752060598289,32.16430375,2625.0,2624.9,4.6661157]
[1752060598692,3.07950375,2625.0,2624.9,4.6661157]
[1752060598884,31.52340375,2625.0,2624.9,4.6661157]
[1752060599195,34.94860012,2625.0,2624.9,4.6661157]
[1752060599589,31.52340375,2625.0,2624.9,4.6661157]
[1752060599890,4.62693887,2625.0,2624.9,4.6661157]
[1752060600092,30.50093887,2625.0,2624.9,4.6661157]
[1752060600493,4.62693887,2625.0,2624.9,6.0279157]
[1752060600694,30.50093887,2625.0,2624.9,6.0279157]
[1752060601088,4.62693887,2625.0,2624.9,6.0279157]
[1752060601288,30.49993887,2625.0,2624.9,6.0279157]
[1752060604188,31.77753729,2625.0,2624.9,6.0279157]
[1752060610196,28.56973729,2625.0,2624.9,6.0279157]
[1752060610496,31.77753729,2625.0,2624.9,6.0279157]
[1752060618702,30.49993887,2625.0,2624.9,6.0279157]
[1752060618903,31.77753729,2625.0,2624.9,6.0279157]
[1752060622304,31.77153729,2625.0,2624.9,6.0279157]
[1752060622804,31.51617171,2625.0,2624.9,6.0279157]
[1752060625107,28.30837171,2625.0,2624.9,6.0279157]
[1752060625307,31.51617171,2625.0,2624.9,6.0279157]
[1752060625806,31.51617171,2625.0,2624.9,4.6661157]
[1752060630605,31.51737956,2625.0,2624.9,4.6661157]
[1752060631813,30.09703284,2625.0,2624.9,4.6661157]
[1752060632005,31.5173756,2625.0,2624.9,4.6661157]
[1752060634815,28.3095756,2625.0,2624.9,4.6661157]
[1752060635112,31.5173756,2625.0,2624.9,4.6661157]
[1752060636514,5.6503756,2625.0,2624.9,4.6661157]
[1752060636812,30.49114276,2625.0,2624.9,4.6661157]
[1752060638826,4.62814276,2625.0,2624.9,4.6661157]
[1752060639026,30.49114276,2625.0,2624.9,4.6661157]
[1752060642428,4.62814276,2625.0,2624.9,4.6661157]
[1752060642625,30.49014276,2625.0,2624.9,4.6661157]
[1752060644026,30.48914276,2625.0,2624.9,5.68834854]
[1752060645124,1.42034276,2625.0,2624.9,8.89614854]
[1752060645320,5.89008891,2625.7,2624.9,13.89614854]
[1752060645321,3.42519637,2625.7,2624.9,13.89614854]
[1752060645525,3.42519637,2625.7,2625.6,1.02223284]
[1752060645823,3.42519637,2626.1,2625.6,8.67116568]
[1752060646029,3.2078,2626.4,2626.0,1.02223284]
[1752060646323,25.861,2626.6,2626.3,1.66053284]
[1752060646526,25.861,2626.7,2626.5,1.02223284]
[1752060646727,25.861,2626.7,2626.6,2.902]
[1752060647127,3.2078,2626.8,2626.6,2.902]
[1752060647328,25.859,2626.7,2626.6,1.9136]
[1752060647520,26.88123284,2626.7,2626.6,1.9136]
[1752060647723,26.88123284,2626.7,2626.6,0.6383]
[1752060648127,26.88123284,2626.7,2626.6,1.6267]
[1752060648829,27.2630476,2626.7,2626.6,0.6383]
[1752060649030,28.6091476,2626.7,2626.6,0.6383]
[1752060649726,28.6091476,2626.7,2626.4,0.9884]
[1752060649925,4.6118476,2626.5,2626.4,1.6244]
[1752060650133,30.4668476,2626.5,2626.4,4.6444157]
[1752060650631,31.1028476,2626.5,2626.4,4.6444157]
[1752060656736,27.8950476,2626.5,2626.4,4.6444157]
[1752060656936,31.1028476,2626.5,2626.4,4.6444157]
[1752060657632,31.1028476,2626.5,2626.4,3.0200157]
[1752060660335,29.6988,2626.5,2626.4,3.0200157]
[1752060660530,31.1028476,2626.5,2626.4,3.0200157]
[1752060665744,5.2478476,2626.5,2626.4,3.0200157]
[1752060665945,31.0968476,2626.5,2626.4,3.0200157]
[1752060667243,6.63302448,2626.5,2626.4,4.6586157]
[1752060667446,32.48202448,2626.5,2626.4,4.6586157]
[1752060668145,32.48102448,2626.5,2626.4,4.6586157]
[1752060671249,32.48102448,2626.5,2626.4,3.6560157]
[1752060671449,32.48102448,2626.5,2626.4,3.0200157]
[1752060672050,32.48102448,2626.5,2626.4,4.6586157]
[1752060674250,4.59297688,2626.5,2626.4,4.6586157]
[1752060674647,29.0648,2626.5,2626.4,4.6586157]
[1752060675247,25.856,2626.6,2626.4,12.4432633]
[1752060675453,3.2078,2626.8,2626.5,2.4066476]
[1752060675654,27.25892587,2626.7,2626.6,1.3806]
[1752060675853,27.25892587,2626.7,2626.6,2.0166]
[1752060676056,25.867,2626.7,2626.6,8.0192]
[1752060676654,29.0748,2626.8,2626.6,8.0192]
[1752060676955,29.0748,2626.8,2626.7,2.3175]
[1752060677259,29.0748,2626.8,2626.7,3.5936]
[1752060678060,3.2078,2626.8,2626.7,3.5936]
[1752060678360,25.862,2626.8,2626.7,9.9976476]
[1752060680252,25.862,2626.8,2626.7,13.0176633]
[1752060680456,3.2078,2627.2,2626.7,13.0176633]
[1752060680657,25.862,2627.1,2626.8,1.3816]
[1752060680964,25.862,2627.1,2627.0,0.6557]
[1752060681260,25.862,2627.1,2627.0,1.6458]
[1752060684464,25.857,2627.1,2627.0,1.6458]
[1752060685166,25.857,2627.1,2627.0,4.6658157]
[1752060688765,25.852,2627.1,2627.0,4.6658157]
[1752060689268,25.851,2627.1,2627.0,4.6658157]
[1752060689569,3.2078,2627.2,2627.0,4.6658157]
[1752060689869,3.2078,2627.2,2627.1,2.2994]
[1752060690067,29.0578,2627.2,2627.1,3.6139]
[1752060690366,3.2078,2627.2,2627.1,6.6339157]
[1752060690566,29.0608,2627.2,2627.1,6.6339157]
[1752060692372,3.2078,2627.2,2627.1,6.6339157]
[1752060692570,29.0598,2627.2,2627.1,6.6339157]
[1752060695967,3.2078,2627.2,2627.1,6.6339157]
[1752060696271,29.0558,2627.2,2627.1,6.6339157]
[1752060697571,29.0558,2627.2,2627.1,4.6658157]
[1752060699668,3.2078,2627.2,2627.1,4.6658157]
[1752060699875,29.0538,2627.2,2627.1,4.6658157]
[1752060700171,3.2078,2627.2,2627.1,4.6658157]
[1752060700570,3.2078,2627.2,2627.1,6.0698633]
[1752060700770,29.0568,2627.2,2627.1,6.0698633]
[1752060701073,3.2078,2627.2,2627.1,4.6658157]
[1752060701274,29.0568,2627.2,2627.1,4.6658157]
[1752060702074,29.0568,2627.2,2627.1,6.6724157]
[1752060703673,3.2078,2627.2,2627.1,6.6724157]
[1752060703869,29.0548,2627.2,2627.1,6.6724157]
[1752060704176,30.44918133,2627.2,2627.1,4.6658157]
[1752060706076,4.60218133,2627.2,2627.1,4.6658157]
[1752060706274,30.47118133,2627.2,2627.1,4.6658157]
[1752060707770,31.87522893,2627.2,2627.1,4.6658157]
[1752060709174,31.87522893,2627.2,2627.1,3.6757157]
[1752060709870,31.87522893,2627.2,2627.1,4.6396157]
[1752060713474,31.87522893,2627.2,2627.1,3.6757157]
[1752060713680,33.25722893,2627.2,2627.1,3.6757157]
[1752060713879,33.25722893,2627.2,2627.1,4.6396157]
[1752060714177,31.87522893,2627.2,2627.1,4.6396157]
[1752060714582,31.86622893,2627.2,2627.1,4.6396157]
[1752060715180,30.46218133,2627.2,2627.1,4.6396157]
[1752060715880,4.60218133,2627.2,2627.1,4.6396157]
[1752060716177,30.46218133,2627.2,2627.1,4.6396157]
[1752060716479,4.60218133,2627.2,2627.1,4.6396157]
[1752060716680,30.46018133,2627.2,2627.1,4.6396157]
[1752060717379,30.46018133,2627.2,2627.1,5.9097157]
[1752060718782,4.60218133,2627.2,2627.1,5.9097157]
[1752060719177,1.39438133,2627.2,2627.1,5.9097157]
[1752060719482,27.25238133,2627.2,2627.1,5.9097157]
[1752060720377,30.46018133,2627.2,2627.1,5.9097157]
[1752060720682,30.44930319,2627.2,2627.1,5.9097157]
[1752060722379,4.59130319,2627.2,2627.1,5.9097157]
[1752060722580,30.44630319,2627.2,2627.1,5.9097157]
[1752060723279,4.59130319,2627.2,2627.1,5.9097157]
[1752060723480,30.44330319,2627.2,2627.1,5.9097157]
[1752060723682,27.23550319,2627.2,2627.1,5.9097157]
[1752060724390,30.44330319,2627.2,2627.1,5.9097157]
[1752060724592,30.44330319,2627.2,2627.1,4.6396157]
[1752060729394,4.59130319,2627.2,2627.1,4.6396157]
[1752060729596,30.43730319,2627.2,2627.1,4.6396157]
[1752060729796,30.43730319,2627.2,2627.1,5.9996157]
[1752060729997,3.2078,2627.2,2627.1,5.9996157]
[1752060730197,29.0528,2627.2,2627.1,5.9996157]
[1752060731703,29.0518,2627.2,2627.1,5.9996157]
[1752060732704,25.843,2627.2,2627.1,7.4036633]
[1752060734407,25.843,2627.2,2627.1,5.9996157]
[1752060734806,25.84,2627.2,2627.1,5.9996157]
[1752060737011,25.84,2627.2,2627.1,6.01255594]
[1752060737405,25.84,2627.2,2627.1,6.02198793]
[1752060738310,25.847,2627.2,2627.1,6.02198793]
[1752060739711,25.844,2627.3,2627.1,6.02198793]
[1752060739912,25.844,2627.3,2627.2,2.0589]
[1752060740112,25.844,2627.3,2627.2,2.7062]
[1752060740411,25.843,2627.3,2627.2,6.69058793]
[1752060741710,27.23818744,2627.3,2627.2,6.69058793]
[1752060742412,27.2381748,2627.3,2627.2,6.69058793]
[1752060743317,30.4459748,2627.3,2627.2,4.63168793]
[1752060750014,4.6029748,2627.3,2627.2,4.63168793]
[1752060750214,30.4419748,2627.3,2627.2,4.63168793]
[1752060750919,27.2341748,2627.3,2627.2,4.63168793]
[1752060751620,30.4419748,2627.3,2627.2,4.63168793]
[1752060752020,4.6029748,2627.3,2627.2,4.63168793]
[1752060752317,30.4419748,2627.3,2627.2,4.63168793]
[1752060753217,27.2341748,2627.3,2627.2,4.63168793]
[1752060754020,30.4419748,2627.3,2627.2,4.63168793]
[1752060755622,4.6029748,2627.3,2627.2,4.63168793]
[1752060755920,30.4419748,2627.3,2627.2,4.63168793]
[1752060757315,31.0939748,2627.3,2627.2,4.63168793]
[1752060759719,2.0471748,2627.3,2627.2,4.63168793]
[1752060759918,27.8851748,2627.3,2627.2,4.63168793]
[1752060760318,31.0929748,2627.3,2627.2,4.63168793]
[1752060762411,5.2549748,2627.3,2627.2,4.63168793]
[1752060762618,31.0929748,2627.3,2627.2,4.63168793]
[1752060762921,27.8851748,2627.3,2627.2,4.63168793]
[1752060763123,31.0929748,2627.3,2627.2,4.63168793]
[1752060763322,27.8851748,2627.3,2627.2,4.63168793]
[1752060763715,2.0471748,2627.3,2627.2,4.63168793]
[1752060763924,31.0929748,2627.3,2627.2,4.63168793]
[1752060765627,31.09439598,2627.3,2627.2,4.63168793]
[1752060766129,5.25639598,2627.3,2627.2,4.63168793]
[1752060766424,31.09439598,2627.3,2627.2,4.63168793]
[1752060767228,5.25639598,2627.3,2627.2,4.63168793]
[1752060767428,31.09439598,2627.3,2627.2,4.63168793]
[1752060774131,31.09439598,2627.3,2627.2,5.6519566]
[1752060774527,5.25639598,2627.3,2627.2,4.63168793]
[1752060774832,1.39659598,2627.3,2627.2,6.64968793]
[1752060775033,27.23459598,2627.3,2627.2,6.64968793]
[1752060775627,1.39659598,2627.3,2627.2,6.64968793]
[1752060775831,27.23459598,2627.3,2627.2,6.64968793]
[1752060776934,3.2078,2627.6,2627.2,11.47004053]
[1752060777134,1.39642049,2627.5,2627.4,1.40253747]
[1752060777334,3.2078,2627.6,2627.4,7.7664526]
[1752060777531,3.2078,2627.6,2627.5,4.75558736]
[1752060777833,25.837,2627.8,2627.5,7.01648736]
[1752060778033,25.837,2627.8,2627.7,1.40253747]
[1752060778224,1.39580951,2627.8,2627.7,1.6307]
[1752060778625,1.39580951,2627.8,2627.7,1.65307223]
[1752060779928,1.39580951,2627.8,2627.7,3.03207223]
[1752060780233,26.473,2627.9,2627.7,6.05208793]
[1752060780435,0.63,2627.9,2627.7,6.05208793]
[1752060780732,26.478,2627.9,2627.8,1.00197223]
[1752060780934,27.87175531,2627.9,2627.8,1.65307223]
[1752060781336,3.2078,2628.4,2627.8,3.0556097]
[1752060781635,2.05757434,2628.3,2628.1,0.02237223]
[1752060781829,1.39307434,2628.2,2628.1,0.02237223]
[1752060782032,1.39307434,2628.2,2628.1,1.65307223]
[1752060782232,0.6645,2628.3,2628.1,1.65307223]
[1752060782537,0.6645,2628.3,2628.2,0.9796]
[1752060782736,2.0566598,2628.3,2628.2,1.65307223]
[1752060784840,3.45919727,2628.3,2628.2,0.02237223]
[1752060785140,26.5285,2628.3,2628.2,3.04238793]
[1752060785340,27.93103747,2628.3,2628.2,3.04238793]
[1752060785741,26.5285,2628.3,2628.2,3.04238793]
[1752060785935,27.93103747,2628.3,2628.2,3.04238793]
[1752060786141,27.93103747,2628.3,2628.2,3.69348793]
[1752060787748,27.93103747,2628.3,2628.2,4.67308793]
[1752060788644,27.92703747,2628.3,2628.2,4.67308793]
[1752060788944,26.5245,2628.3,2628.2,4.67308793]
[1752060789146,0.6645,2628.3,2628.2,4.67308793]
[1752060789435,26.5245,2628.3,2628.2,4.67308793]
[1752060790538,0.6645,2628.3,2628.2,4.67308793]
[1752060790739,26.5245,2628.3,2628.2,4.67308793]
[1752060791044,0.6645,2628.3,2628.2,4.67308793]
[1752060791341,26.5235,2628.3,2628.2,4.67308793]
[1752060792142,26.5225,2628.3,2628.2,4.67308793]
[1752060793145,26.5215,2628.3,2628.2,4.67308793]
[1752060794242,56.0784,2629.0,2628.2,4.67308793]
[1752060794445,1.38647574,2628.9,2628.4,3.2078]
[1752060794648,0.6668,2629.0,2628.8,0.6511]
[1752060794947,1.40253747,2628.9,2628.8,0.6511]
[1752060795147,0.6668,2629.0,2628.8,0.6511]
[1752060795346,25.893,2628.9,2628.8,3.6711157]
[1752060795545,25.893,2628.9,2628.8,4.6507157]
[1752060795745,25.893,2628.9,2628.8,4.67308793]
[1752060796649,25.893,2628.9,2628.8,3.04238793]
[1752060798646,1.2783,2628.9,2628.8,3.04238793]
[1752060798945,28.56410747,2628.9,2628.8,3.04238793]
[1752060800745,33.56410747,2628.9,2628.3,0.9644]
[1752060800950,1.40253747,2628.4,2628.3,1.6121]
[1752060801150,27.30453747,2628.4,2628.3,1.6121]
[1752060802761,25.904,2628.4,2628.3,1.6121]
[1752060803753,25.904,2628.4,2628.3,10.1054]
[1752060804854,0.6688,2628.5,2628.3,10.1054]
[1752060805054,25.901,2628.4,2628.3,9.141]
[1752060805246,25.901,2628.4,2628.3,10.1054]
[1752060805451,27.30353747,2628.4,2628.3,10.1054]
[1752060807951,27.30353747,2628.4,2628.3,8.4933]
[1752060808155,27.30353747,2628.4,2628.3,10.1054]
[1752060809257,28.7002639,2628.4,2628.3,10.1054]
[1752060811661,28.7002639,2628.4,2628.3,8.4933]
[1752060813363,35.0108639,2628.4,2628.3,6.90754517]
[1752060814757,75.8108639,2628.4,2628.3,6.90754517]
[1752060816161,1.40253747,2627.9,2627.8,0.97011124]
[1752060816458,28.6932639,2627.9,2627.8,1.61781124]
[1752060816960,29.3600639,2627.9,2627.8,1.61781124]
[1752060820965,25.892,2627.9,2627.8,10.11111124]
[1752060821263,25.899,2627.9,2627.8,10.78981124]
[1752060822458,27.30153747,2627.9,2627.8,10.78981124]
[1752060823064,27.93943747,2627.9,2627.8,10.78981124]
[1752060823766,27.93943747,2627.9,2627.8,10.11111124]
[1752060824563,27.93943747,2627.9,2627.8,11.38101124]
[1752060827365,27.30153747,2627.9,2627.8,11.38101124]
[1752060827567,25.891,2627.9,2627.8,11.38101124]
[1752060827968,3.8874,2628.3,2627.8,12.78354871]
[1752060828167,27.29326714,2628.2,2628.0,1.40253747]
[1752060828467,25.895,2628.2,2628.1,2.8936]
[1752060828768,25.895,2628.2,2628.1,3.5211]
[1752060829867,3.2078,2628.3,2628.1,3.5211]
[1752060830067,25.893,2628.2,2628.1,1.2677]
[1752060830267,3.2078,2628.3,2628.2,9.4964]
[1752060830463,30.50430064,2628.3,2628.2,9.1335]
[1752060830670,30.50430064,2628.3,2628.2,10.1366]
[1752060832267,35.50430064,2628.3,2628.2,8.4933]
[1752060832469,36.90683811,2628.3,2627.2,4.42091513]
[1752060832776,3.2078,2627.4,2627.3,0.6402]
[1752060832967,29.2228,2627.4,2627.3,0.6402]
[1752060833170,29.2228,2627.4,2627.3,1.6433]
[1752060833974,30.62533747,2627.4,2627.3,1.6433]
[1752060835372,29.2228,2627.4,2627.3,1.6433]
[1752060835574,30.62533747,2627.4,2627.3,10.1366]
[1752060836972,32.02402717,2627.4,2627.3,10.1366]
[1752060838174,30.62533747,2627.4,2627.3,10.1366]
[1752060839473,3.2078,2627.4,2627.3,10.1366]
[1752060839674,29.2138,2627.4,2627.3,10.1366]
[1752060841476,25.997,2627.4,2627.3,10.1366]
[1752060842976,1.40253747,2627.6,2627.3,10.1366]
[1752060843276,25.998,2627.5,2627.4,1.0031]
[1752060843473,25.998,2627.5,2627.4,1.6433]
[1752060843972,27.39571396,2627.5,2627.4,0.6402]
[1752060845279,27.39571396,2627.5,2627.4,9.1335]
[1752060845776,27.39571396,2627.5,2627.4,10.1366]
[1752060847178,25.995,2627.5,2627.4,10.1366]
[1752060848778,1.40253747,2627.6,2627.4,10.1366]
[1752060849174,25.989,2627.5,2627.4,10.1366]
[1752060849367,87.21282077,2627.5,2626.7,1.0031]
[1752060849572,4.61033747,2626.8,2626.7,1.6433]
[1752060849781,30.62433747,2626.8,2626.7,1.6433]
[1752060850473,30.62433747,2626.8,2626.1,1.0031]
[1752060850474,38.42645492,2626.8,2626.1,1.0031]
[1752060850681,1.40253747,2626.2,2625.9,3.41781513]
[1752060850876,29.9195,2626.1,2626.0,0.6402]
[1752060851072,29.9225,2626.1,2626.0,0.6402]
[1752060852076,31.32503747,2626.1,2626.0,0.6402]
[1752060852581,31.32503747,2626.1,2626.0,9.1335]
[1752060854482,31.32503747,2626.1,2626.0,8.4933]
[1752060855678,5.28603747,2626.1,2626.0,9.1335]
[1752060855873,29.9245,2626.1,2626.0,10.1366]
[1752060856678,3.8835,2626.1,2626.0,10.1366]
[1752060856878,29.9275,2626.1,2626.0,10.1366]
[1752060857081,29.9265,2626.1,2626.0,10.1366]
[1752060859192,3.8835,2626.1,2626.0,10.1366]
[1752060859488,3.8835,2626.1,2626.0,10.1572]
[1752060859684,29.9195,2626.1,2626.0,10.1572]
[1752060859885,29.9215,2626.1,2626.0,10.1572]
[1752060863593,3.8835,2626.1,2626.0,10.1572]
[1752060863890,29.9165,2626.1,2626.0,10.1572]
[1752060865393,3.8835,2626.1,2626.0,10.1572]
[1752060865696,29.9085,2626.1,2626.0,10.1572]
[1752060867592,29.9085,2626.1,2626.0,9.1421]
[1752060868387,3.8835,2626.1,2626.0,10.1572]
[1752060868594,29.9055,2626.1,2626.0,10.1572]
[1752060870792,29.9055,2626.1,2626.0,9.1421]
[1752060870986,29.9055,2626.1,2626.0,8.4933]
[1752060871193,31.2323,2626.1,2626.0,8.4933]
[1752060872195,32.64113912,2626.1,2626.0,8.4933]
[1752060872592,32.94625412,2626.1,2626.0,8.4933]
[1752060872792,32.64113912,2626.1,2626.0,8.4933]
[1752060877304,37.64113912,2626.1,2626.0,8.4933]
[1752060877506,32.64113912,2626.1,2626.0,8.4933]
[1752060877701,37.64113912,2626.1,2626.0,8.4933]
[1752060878404,41.06633549,2626.1,2626.0,8.4933]
[1752060879504,37.64113912,2626.1,2626.0,8.4933]
[1752060881096,11.61913912,2626.1,2626.0,8.4933]
[1752060881306,37.64613912,2626.1,2626.0,8.4933]
[1752060881509,32.64613912,2626.1,2626.0,8.4933]
[1752060884009,37.64613912,2626.1,2626.0,8.4933]
[1752060888415,32.64613912,2626.1,2626.0,8.4933]
[1752060889415,37.64613912,2626.1,2625.5,0.9723]
[1752060889611,4.61033747,2625.6,2625.5,1.6117]
[1752060889812,32.02617659,2625.6,2625.5,1.6117]
[1752060890713,32.02617659,2625.6,2625.5,0.6394]
[1752060890914,32.02617659,2625.6,2625.5,1.6117]
[1752060891618,32.02617659,2625.6,2625.2,1.6157]
[1752060891813,4.61033747,2625.3,2625.2,1.2828]
[1752060892015,32.03217659,2625.3,2625.2,1.2828]
[1752060892418,32.03217659,2625.3,2625.2,2.2551]
[1752060893617,32.03217659,2625.3,2625.2,10.7484]
[1752060894916,4.61663912,2625.3,2625.2,10.7484]
[1752060895122,30.62763912,2625.3,2625.2,10.7484]
[1752060895320,3.41881034,2625.8,2625.2,20.35873747]
[1752060895514,26.011,2625.7,2625.3,2.2317]
[1752060895718,6.62661034,2625.9,2625.4,1.2594]
[1752060895719,26.016,2625.6,2625.4,1.2594]
[1752060895919,47.42661034,2625.9,2625.4,1.2594]
[1752060896123,26.03,2625.8,2625.5,1.6117]
[1752060896324,26.03,2625.8,2625.6,1.2594]
[1752060896617,6.62661034,2625.9,2625.7,1.6117]
[1752060896823,28.05913747,2625.8,2625.7,1.6117]
[1752060897927,2.02713747,2625.8,2625.7,1.6117]
[1752060898121,3.2078,2625.9,2625.7,1.6117]
[1752060898321,26.028,2625.8,2625.7,0.6394]
[1752060898624,3.2078,2625.9,2625.7,0.6394]
[1752060898823,26.027,2625.8,2625.7,0.6394]
[1752060899016,26.027,2625.8,2625.7,1.6117]
[1752060899828,3.41881034,2626.1,2625.7,1.6117]
[1752060900029,26.025,2626.0,2625.8,0.9723]
[1752060900229,26.025,2626.0,2625.9,0.6394]
[1752060900429,3.41881034,2626.1,2625.9,1.6117]
[1752060900632,26.025,2626.0,2625.9,1.6117]
[1752060901023,3.41881034,2626.1,2625.9,1.6117]
[1752060901223,26.026,2626.0,2625.9,0.6394]
[1752060902130,3.41881034,2626.1,2625.9,1.6117]
[1752060902325,26.023,2626.0,2625.9,1.6117]
[1752060902724,3.2078,2626.2,2625.9,1.6117]
[1752060903034,26.022,2626.1,2626.0,0.9723]
[1752060903230,26.022,2626.1,2626.0,1.6117]
[1752060904428,3.2078,2626.2,2626.0,1.6117]
[1752060904628,54.834,2626.4,2626.1,2.2956]
[1752060904833,26.02,2626.3,2626.1,2.2956]
[1752060905229,26.02,2626.3,2626.2,8.4933]
[1752060906031,54.834,2626.4,2626.2,14.89583747]
[1752060906333,26.021,2626.3,2626.2,9.89583747]
[1752060906533,26.021,2626.3,2626.2,14.89583747]
[1752060907233,26.021,2626.3,2626.2,13.4933]
[1752060907432,27.42516862,2626.3,2626.2,13.4933]
[1752060907633,1.40416862,2626.3,2626.2,13.4933]
[1752060907939,27.42216862,2626.3,2626.2,13.4933]
[1752060908129,26.018,2626.3,2626.2,15.105]
[1752060910438,26.018,2626.3,2626.2,10.105]
[1752060912838,54.834,2626.4,2626.2,10.105]
[1752060913040,26.005,2626.3,2626.2,9.1327]
[1752060913337,26.6296,2626.3,2626.2,9.1327]
[1752060913639,26.005,2626.3,2626.2,10.105]
[1752060915643,26.005,2626.3,2626.2,9.1327]
[1752060915840,28.03213747,2626.3,2626.2,9.7697]
[1752060916046,29.71443747,2626.3,2626.2,9.1327]
[1752060916340,29.71443747,2626.3,2626.2,8.4933]
[1752060916545,29.71443747,2626.3,2626.2,9.1327]